[Event "*** Titled Tuesday Blitz"]
[Site "Chess.com"]
[Date "2020.11.03"]
[Round "9"]
[White "Flopezin"]
[Black "UCantHandleDenker"]
[Result "1-0"]
[WhiteElo "2391"]
[BlackElo "2482"]
[TimeControl "180+1"]
[EndTime "11:49:13 PST"]
[Termination "Flopezin won by resignation"]

1. c4 {[%clk 0:03:00.9]} 1... Nf6 {[%clk 0:02:55.1]} 2. Nc3 {[%clk 0:03:00.4]}
2... g6 {[%clk 0:02:54.8]} 3. e4 {[%clk 0:03:00.7]} 3... d6 {[%clk 0:02:55.3]}
4. d4 {[%clk 0:03:01.1]} 4... Bg7 {[%clk 0:02:55.9]} 5. Be2 {[%clk 0:03:01.6]}
5... O-O {[%clk 0:02:56.3]} 6. Nf3 {[%clk 0:03:02.1]} 6... e5 {[%clk 0:02:55.9]}
7. d5 {[%clk 0:03:02.6]} 7... a5 {[%clk 0:02:55.1]} 8. Bg5 {[%clk 0:03:03.1]}
8... h6 {[%clk 0:02:55.6]} 9. Be3 {[%clk 0:03:03.6]} 9... Na6 {[%clk 0:02:55.7]}
10. Nd2 {[%clk 0:03:03]} 10... Nh7 {[%clk 0:02:49.3]} 11. O-O {[%clk 0:02:59.2]}
11... Bd7 {[%clk 0:02:48.3]} 12. a3 {[%clk 0:02:54.1]} 12... f5 {[%clk
0:02:45.5]} 13. exf5 {[%clk 0:02:53.9]} 13... gxf5 {[%clk 0:02:42.6]} 14. f4
{[%clk 0:02:54.3]} 14... e4 {[%clk 0:02:39.6]} 15. Rb1 {[%clk 0:02:52.6]} 15...
Nc5 {[%clk 0:02:29.7]} 16. Nb3 {[%clk 0:02:47.5]} 16... Nxb3 {[%clk 0:02:22.4]}
17. Qxb3 {[%clk 0:02:47.2]} 17... a4 {[%clk 0:01:58.2]} 18. Qd1 {[%clk
0:02:46.8]} 18... Qe7 {[%clk 0:01:40.8]} 19. Qd2 {[%clk 0:02:33.8]} 19... Kh8
{[%clk 0:01:32.4]} 20. Kh1 {[%clk 0:02:32.5]} 20... Rg8 {[%clk 0:01:32.6]} 21.
g3 {[%clk 0:02:31.9]} 21... Nf6 {[%clk 0:01:32.1]} 22. Bd4 {[%clk 0:02:31.5]}
22... Kh7 {[%clk 0:01:23.9]} 23. Nd1 {[%clk 0:02:27.4]} 23... b6 {[%clk
0:01:18.8]} 24. Ne3 {[%clk 0:02:23.9]} 24... Raf8 {[%clk 0:01:18.3]} 25. b4
{[%clk 0:02:15.6]} 25... axb3 {[%clk 0:01:17.8]} 26. Rxb3 {[%clk 0:02:16.1]}
26... Ne8 {[%clk 0:01:17.7]} 27. Ra1 {[%clk 0:02:12.7]} 27... Bxd4 {[%clk
0:01:16.2]} 28. Qxd4 {[%clk 0:02:12.6]} 28... Nf6 {[%clk 0:01:00.6]} 29. a4
{[%clk 0:02:05.6]} 29... h5 {[%clk 0:00:44.4]} 30. a5 {[%clk 0:01:53.8]} 30...
bxa5 {[%clk 0:00:43.8]} 31. Rxa5 {[%clk 0:01:53.8]} 31... h4 {[%clk 0:00:44.2]}
32. Nf1 {[%clk 0:01:54.3]} 32... Rg6 {[%clk 0:00:33.3]} 33. Ra7 {[%clk
0:01:48.5]} 33... Ne8 {[%clk 0:00:33]} 34. Bh5 {[%clk 0:01:39.1]} 34... Rfg8
{[%clk 0:00:18]} 35. Bxg6+ {[%clk 0:01:37.9]} 35... Rxg6 {[%clk 0:00:18.9]} 36.
Qd1 {[%clk 0:01:29.2]} 36... Kh6 {[%clk 0:00:17.9]} 37. Qd4 {[%clk 0:01:11.7]}
37... Qf7 {[%clk 0:00:15.3]} 38. Qh8+ {[%clk 0:01:10.7]} 38... Qh7 {[%clk
0:00:13.6]} 39. Qxh7+ {[%clk 0:01:08.4]} 39... Kxh7 {[%clk 0:00:14.5]} 40. Kg2
{[%clk 0:01:08.2]} 40... hxg3 {[%clk 0:00:13.9]} 41. hxg3 {[%clk 0:01:09.1]}
41... Kg7 {[%clk 0:00:14.3]} 42. Ne3 {[%clk 0:01:09.3]} 42... Kf6 {[%clk
0:00:14.8]} 43. Rb8 {[%clk 0:01:06.3]} 43... Ke7 {[%clk 0:00:13.6]} 44. Raa8
{[%clk 0:01:04.9]} 44... Rf6 {[%clk 0:00:13.8]} 45. Nc2 {[%clk 0:00:58.8]} 45...
Rf8 {[%clk 0:00:13.6]} 46. Nd4 {[%clk 0:00:58.1]} 46... Rf7 {[%clk 0:00:13.5]}
47. Kf2 {[%clk 0:00:48.6]} 47... Rh7 {[%clk 0:00:13]} 48. Nxf5+ {[%clk
0:00:45.6]} 48... Bxf5 {[%clk 0:00:12.5]} 49. Rxe8+ {[%clk 0:00:45]} 49... Kf7
{[%clk 0:00:11.6]} 50. Rf8+ {[%clk 0:00:45.1]} 50... Kg6 {[%clk 0:00:12.2]} 51.
Rg8+ {[%clk 0:00:44.8]} 51... Kh6 {[%clk 0:00:11.5]} 52. Raf8 {[%clk 0:00:39.8]}
52... Bg6 {[%clk 0:00:10.8]} 53. Rf6 {[%clk 0:00:38.3]} 1-0

[Event "*** Titled Tuesday Blitz"]
[Site "Chess.com"]
[Date "2020.11.03"]
[Round "9"]
[White "snowlord"]
[Black "IceBelka"]
[Result "0-1"]
[WhiteElo "2687"]
[BlackElo "2251"]
[TimeControl "180+1"]
[EndTime "11:49:14 PST"]
[Termination "IceBelka won on time"]

1. Nf3 {[%clk 0:02:59.2]} 1... d5 {[%clk 0:02:55.9]} 2. g3 {[%clk 0:02:55.6]}
2... Nf6 {[%clk 0:02:54.7]} 3. Bg2 {[%clk 0:02:55.3]} 3... e6 {[%clk 0:02:55]}
4. O-O {[%clk 0:02:54.7]} 4... Be7 {[%clk 0:02:54]} 5. d3 {[%clk 0:02:44.4]}
5... O-O {[%clk 0:02:53]} 6. Bf4 {[%clk 0:02:44.1]} 6... c5 {[%clk 0:02:51]} 7.
e4 {[%clk 0:02:42.7]} 7... Nc6 {[%clk 0:02:48.8]} 8. e5 {[%clk 0:02:34.5]} 8...
Nd7 {[%clk 0:02:48.2]} 9. h4 {[%clk 0:02:31.3]} 9... b5 {[%clk 0:02:45.9]} 10.
c4 {[%clk 0:02:28.4]} 10... bxc4 {[%clk 0:02:31.4]} 11. dxc4 {[%clk 0:02:23.8]}
11... Nb6 {[%clk 0:02:31.5]} 12. cxd5 {[%clk 0:02:01.8]} 12... exd5 {[%clk
0:02:32.4]} 13. Nc3 {[%clk 0:01:59.7]} 13... Bf5 {[%clk 0:02:18.4]} 14. Ne1
{[%clk 0:01:18.4]} 14... Nd4 {[%clk 0:02:13]} 15. Rc1 {[%clk 0:01:14.3]} 15...
Rc8 {[%clk 0:02:11.4]} 16. Be3 {[%clk 0:01:03.3]} 16... Qd7 {[%clk 0:01:59.9]}
17. Bxd4 {[%clk 0:00:57.3]} 17... cxd4 {[%clk 0:01:59.8]} 18. Qxd4 {[%clk
0:00:58]} 18... Rc4 {[%clk 0:01:55.1]} 19. Qd2 {[%clk 0:00:56.7]} 19... d4
{[%clk 0:01:43.5]} 20. Ne4 {[%clk 0:00:52.7]} 20... Bb4 {[%clk 0:01:43.6]} 21.
Qg5 {[%clk 0:00:47.8]} 21... Bg6 {[%clk 0:01:04.8]} 22. Nd3 {[%clk 0:00:36.3]}
22... Be7 {[%clk 0:01:02.8]} 23. Qd2 {[%clk 0:00:34.4]} 23... Rfc8 {[%clk
0:01:00.9]} 24. b3 {[%clk 0:00:31.3]} 24... Rxc1 {[%clk 0:00:55.6]} 25. Rxc1
{[%clk 0:00:32.2]} 25... Ba3 {[%clk 0:00:51.9]} 26. Rxc8+ {[%clk 0:00:29.6]}
26... Qxc8 {[%clk 0:00:52.8]} 27. Nd6 {[%clk 0:00:19.8]} 27... Qc3 {[%clk
0:00:49.7]} 28. Qg5 {[%clk 0:00:19.7]} 28... h6 {[%clk 0:00:45.3]} 29. Qd8+
{[%clk 0:00:19.7]} 29... Kh7 {[%clk 0:00:45.6]} 30. Nf4 {[%clk 0:00:19.7]} 30...
Qe1+ {[%clk 0:00:43.6]} 31. Kh2 {[%clk 0:00:18.8]} 31... Qxe5 {[%clk 0:00:34.8]}
32. Ne8 {[%clk 0:00:02.9]} 32... Be7 {[%clk 0:00:20.1]} 33. Nxg6 {[%clk
0:00:02.5]} 33... fxg6 {[%clk 0:00:16.9]} 34. Qc7 {[%clk 0:00:03]} 34... Qxc7
{[%clk 0:00:16.1]} 35. Nxc7 {[%clk 0:00:03.9]} 35... d3 {[%clk 0:00:16]} 36. Bf3
{[%clk 0:00:03.4]} 36... d2 {[%clk 0:00:15.1]} 37. Nb5 {[%clk 0:00:02.9]} 37...
Nd5 {[%clk 0:00:13.7]} 38. a4 {[%clk 0:00:01.2]} 38... a6 {[%clk 0:00:12.5]} 0-1

[Event "*** Titled Tuesday Blitz"]
[Site "Chess.com"]
[Date "2020.11.03"]
[Round "9"]
[White "SGchess01"]
[Black "tdf98pantani"]
[Result "1-0"]
[WhiteElo "2855"]
[BlackElo "2720"]
[TimeControl "180+1"]
[EndTime "11:49:23 PST"]
[Termination "SGchess01 won by checkmate"]

1. d4 {[%clk 0:03:00.9]} 1... d5 {[%clk 0:02:58.3]} 2. c4 {[%clk 0:03:00.8]}
2... c6 {[%clk 0:02:58.5]} 3. Nc3 {[%clk 0:02:59.5]} 3... Nf6 {[%clk 0:02:58.9]}
4. cxd5 {[%clk 0:03:00]} 4... Nxd5 {[%clk 0:02:57]} 5. e4 {[%clk 0:02:57.9]}
5... Nc7 {[%clk 0:02:56.2]} 6. Nf3 {[%clk 0:02:57]} 6... g6 {[%clk 0:02:56.2]}
7. Be2 {[%clk 0:02:54.9]} 7... Bg7 {[%clk 0:02:56.5]} 8. h3 {[%clk 0:02:52.6]}
8... O-O {[%clk 0:02:56.4]} 9. Be3 {[%clk 0:02:51.9]} 9... Nd7 {[%clk
0:02:41.4]} 10. O-O {[%clk 0:02:47.3]} 10... b6 {[%clk 0:02:31.8]} 11. Qc2
{[%clk 0:02:44.6]} 11... Bb7 {[%clk 0:02:31.8]} 12. Rfd1 {[%clk 0:02:43.9]}
12... Rc8 {[%clk 0:02:27.4]} 13. b4 {[%clk 0:02:42.2]} 13... Qe8 {[%clk
0:02:26.4]} 14. Qa4 {[%clk 0:02:29]} 14... a6 {[%clk 0:02:23.7]} 15. Rac1 {[%clk
0:02:23]} 15... Nb5 {[%clk 0:02:23.3]} 16. e5 {[%clk 0:01:38]} 16... Qd8 {[%clk
0:02:03.1]} 17. Qb3 {[%clk 0:01:34.1]} 17... Nc7 {[%clk 0:01:56.5]} 18. a4
{[%clk 0:01:30]} 18... b5 {[%clk 0:01:52.5]} 19. a5 {[%clk 0:01:28.9]} 19... Nd5
{[%clk 0:01:51.6]} 20. Ne4 {[%clk 0:01:27.2]} 20... f6 {[%clk 0:01:46.3]} 21. e6
{[%clk 0:01:23]} 21... Nb8 {[%clk 0:01:46.1]} 22. Nc5 {[%clk 0:01:23.3]} 22...
Ba8 {[%clk 0:01:43.7]} 23. Bd2 {[%clk 0:01:20.7]} 23... Qd6 {[%clk 0:01:40]} 24.
Re1 {[%clk 0:01:20.6]} 24... h6 {[%clk 0:01:25.5]} 25. Bd3 {[%clk 0:01:17]}
25... Kh7 {[%clk 0:01:18.3]} 26. Qb1 {[%clk 0:01:05]} 26... f5 {[%clk
0:01:18.1]} 27. Ne5 {[%clk 0:00:58]} 27... Nc7 {[%clk 0:01:13.2]} 28. Bc3 {[%clk
0:00:33.5]} 28... Rf6 {[%clk 0:00:57.6]} 29. Ned7 {[%clk 0:00:28.4]} 29... Nxd7
{[%clk 0:00:54.8]} 30. exd7 {[%clk 0:00:28.8]} 30... Rd8 {[%clk 0:00:55]} 31. d5
{[%clk 0:00:29.4]} 31... Nxd5 {[%clk 0:00:40.9]} 32. Bxf6 {[%clk 0:00:28.2]}
32... Qxf6 {[%clk 0:00:37.1]} 33. Re6 {[%clk 0:00:16.9]} 33... Qg5 {[%clk
0:00:37.3]} 34. Bf1 {[%clk 0:00:11.9]} 34... Nf4 {[%clk 0:00:34]} 35. Kh2 {[%clk
0:00:12.1]} 35... Nxe6 {[%clk 0:00:23.2]} 36. Nxe6 {[%clk 0:00:12.2]} 36... Qd2
{[%clk 0:00:19.8]} 37. Nxd8 {[%clk 0:00:12]} 37... Qxf2 {[%clk 0:00:15.3]} 38.
Nf7 {[%clk 0:00:11.6]} 38... Qf4+ {[%clk 0:00:14.6]} 39. Kh1 {[%clk 0:00:11.8]}
39... Bd4 {[%clk 0:00:14.3]} 40. d8=Q {[%clk 0:00:11.1]} 40... Qf2 {[%clk
0:00:14.5]} 41. Qxd4 {[%clk 0:00:08.9]} 41... Qxd4 {[%clk 0:00:14.1]} 42. Qa1
{[%clk 0:00:09.5]} 42... Qf4 {[%clk 0:00:12.4]} 43. Qh8# {[%clk 0:00:08.9]} 1-0

[Event "*** Titled Tuesday Blitz"]
[Site "Chess.com"]
[Date "2020.11.03"]
[Round "9"]
[White "AldokhinIvan"]
[Black "ChristopherYoo"]
[Result "0-1"]
[WhiteElo "2602"]
[BlackElo "2842"]
[TimeControl "180+1"]
[EndTime "11:49:25 PST"]
[Termination "ChristopherYoo won by checkmate"]

1. e4 {[%clk 0:03:00.9]} 1... e6 {[%clk 0:02:57.2]} 2. d4 {[%clk 0:03:00.3]}
2... d5 {[%clk 0:02:57.4]} 3. Nc3 {[%clk 0:02:59.2]} 3... Be7 {[%clk 0:02:51.3]}
4. Bd3 {[%clk 0:02:48.7]} 4... c5 {[%clk 0:02:35.5]} 5. dxc5 {[%clk 0:02:47]}
5... Nf6 {[%clk 0:02:35.1]} 6. exd5 {[%clk 0:02:27.3]} 6... exd5 {[%clk
0:02:26.6]} 7. Bg5 {[%clk 0:02:21.2]} 7... O-O {[%clk 0:02:06.1]} 8. Nge2 {[%clk
0:02:18.3]} 8... h6 {[%clk 0:01:34.7]} 9. Bh4 {[%clk 0:02:11.7]} 9... Nbd7
{[%clk 0:01:34.4]} 10. b4 {[%clk 0:01:47.6]} 10... Ne5 {[%clk 0:01:31.9]} 11.
O-O {[%clk 0:01:38.2]} 11... a5 {[%clk 0:01:07.1]} 12. a3 {[%clk 0:01:33.8]}
12... Bg4 {[%clk 0:00:56.7]} 13. f3 {[%clk 0:01:24.6]} 13... Be6 {[%clk
0:00:53.2]} 14. Nd4 {[%clk 0:01:21]} 14... Nc6 {[%clk 0:00:44.2]} 15. Nce2
{[%clk 0:01:02.9]} 15... Nd7 {[%clk 0:00:38.7]} 16. Bxe7 {[%clk 0:00:52.9]}
16... Qxe7 {[%clk 0:00:39.6]} 17. c3 {[%clk 0:00:44.6]} 17... Nde5 {[%clk
0:00:36.7]} 18. Nf4 {[%clk 0:00:40.7]} 18... Qg5 {[%clk 0:00:27.7]} 19. g3
{[%clk 0:00:25.4]} 19... axb4 {[%clk 0:00:16.6]} 20. Nfxe6 {[%clk 0:00:25.2]}
20... Qe3+ {[%clk 0:00:13.7]} 21. Kg2 {[%clk 0:00:20.5]} 21... fxe6 {[%clk
0:00:13.3]} 22. Be2 {[%clk 0:00:14.5]} 22... bxc3 {[%clk 0:00:10.7]} 23. Nxe6
{[%clk 0:00:11.5]} 23... Rf6 {[%clk 0:00:09.5]} 24. Nc7 {[%clk 0:00:09.3]} 24...
c2 {[%clk 0:00:06.9]} 25. Qxc2 {[%clk 0:00:07.9]} 25... Nd4 {[%clk 0:00:06.8]}
26. Qd1 {[%clk 0:00:03.7]} 26... Rd8 {[%clk 0:00:06.8]} 27. Re1 {[%clk 0:00:03]}
27... Ng4 {[%clk 0:00:02.2]} 28. Bf1 {[%clk 0:00:02.1]} 28... Qf2+ {[%clk
0:00:01.8]} 29. Kh3 {[%clk 0:00:02.4]} 29... Qxh2+ {[%clk 0:00:02.7]} 30. Kxg4
{[%clk 0:00:02.8]} 30... Rg6+ {[%clk 0:00:01.8]} 31. Kf4 {[%clk 0:00:02.6]}
31... Qxg3+ {[%clk 0:00:02.1]} 32. Ke3 {[%clk 0:00:03]} 32... Nf5+ {[%clk
0:00:02.6]} 33. Kd3 {[%clk 0:00:03.4]} 33... Qxc7 {[%clk 0:00:02.8]} 34. Kc2
{[%clk 0:00:03.6]} 34... Qxc5+ {[%clk 0:00:02.7]} 35. Kb3 {[%clk 0:00:04.2]}
35... Rb6+ {[%clk 0:00:03.2]} 36. Ka2 {[%clk 0:00:03.8]} 36... Ra8 {[%clk
0:00:02.6]} 37. Qd3 {[%clk 0:00:02.7]} 37... Rxa3+ {[%clk 0:00:02.8]} 38. Qxa3
{[%clk 0:00:02.7]} 38... Qc2+ {[%clk 0:00:03.7]} 39. Qb2 {[%clk 0:00:01.5]}
39... Qxb2# {[%clk 0:00:04.6]} 0-1

[Event "*** Titled Tuesday Blitz"]
[Site "Chess.com"]
[Date "2020.11.03"]
[Round "9"]
[White "Kolle05"]
[Black "Roza_Idrisova"]
[Result "1-0"]
[WhiteElo "2356"]
[BlackElo "2196"]
[TimeControl "180+1"]
[EndTime "11:49:25 PST"]
[Termination "Kolle05 won by resignation"]

1. e4 {[%clk 0:03:00.9]} 1... c6 {[%clk 0:02:59.5]} 2. Nc3 {[%clk 0:02:58.3]}
2... d5 {[%clk 0:02:59.5]} 3. Nf3 {[%clk 0:02:56.8]} 3... a6 {[%clk 0:02:58.7]}
4. a4 {[%clk 0:02:50.6]} 4... Bg4 {[%clk 0:02:57.7]} 5. d4 {[%clk 0:02:40.6]}
5... e6 {[%clk 0:02:55.2]} 6. h3 {[%clk 0:02:39.4]} 6... Bxf3 {[%clk 0:02:53.9]}
7. Qxf3 {[%clk 0:02:40.3]} 7... dxe4 {[%clk 0:02:50.9]} 8. Nxe4 {[%clk
0:02:41.2]} 8... Qxd4 {[%clk 0:02:47.8]} 9. c3 {[%clk 0:02:36.9]} 9... Qd5
{[%clk 0:02:45]} 10. Bg5 {[%clk 0:01:52.4]} 10... f5 {[%clk 0:02:40.6]} 11. Nd2
{[%clk 0:01:50.4]} 11... Qxf3 {[%clk 0:02:37.3]} 12. Nxf3 {[%clk 0:01:51.3]}
12... h6 {[%clk 0:02:36.6]} 13. Bf4 {[%clk 0:01:50.3]} 13... Nf6 {[%clk
0:02:35.5]} 14. Bc4 {[%clk 0:01:45.2]} 14... Nd5 {[%clk 0:02:32.6]} 15. Bxd5
{[%clk 0:01:40.3]} 15... cxd5 {[%clk 0:02:27.9]} 16. O-O {[%clk 0:01:40.1]}
16... Nc6 {[%clk 0:02:27.7]} 17. Rfe1 {[%clk 0:01:39.8]} 17... Kf7 {[%clk
0:02:27.8]} 18. b4 {[%clk 0:01:35.4]} 18... g5 {[%clk 0:02:18.1]} 19. Be5 {[%clk
0:01:34.1]} 19... Rg8 {[%clk 0:02:10.7]} 20. b5 {[%clk 0:01:29.6]} 20... Na5
{[%clk 0:02:09.7]} 21. bxa6 {[%clk 0:01:10.5]} 21... Rxa6 {[%clk 0:02:07.9]} 22.
Rab1 {[%clk 0:01:10.1]} 22... Bg7 {[%clk 0:01:58.7]} 23. Nd4 {[%clk 0:00:57.4]}
23... Bxe5 {[%clk 0:01:55]} 24. Rxe5 {[%clk 0:00:58.3]} 24... Kf6 {[%clk
0:01:50]} 25. Rbe1 {[%clk 0:00:46.9]} 25... Re8 {[%clk 0:01:42.2]} 26. Rxf5+
{[%clk 0:00:46.1]} 26... exf5 {[%clk 0:01:41.6]} 27. Rxe8 {[%clk 0:00:47]} 27...
Nc4 {[%clk 0:01:37.2]} 28. Rf8+ {[%clk 0:00:44.5]} 28... Ke7 {[%clk 0:01:32.2]}
29. Rxf5 {[%clk 0:00:43.6]} 29... Rxa4 {[%clk 0:01:30.6]} 30. Rxd5 {[%clk
0:00:43.2]} 30... Ra1+ {[%clk 0:01:29.4]} 31. Kh2 {[%clk 0:00:42.6]} 31... Rc1
{[%clk 0:01:25.2]} 32. Rb5 {[%clk 0:00:38]} 32... Nd6 {[%clk 0:01:22.9]} 33. Rb3
{[%clk 0:00:33.7]} 33... Kf6 {[%clk 0:01:18.3]} 34. Rb6 {[%clk 0:00:31.8]} 34...
Ke5 {[%clk 0:01:15.8]} 35. Nb5 {[%clk 0:00:28.3]} 35... Nxb5 {[%clk 0:01:11]}
36. Rxb5+ {[%clk 0:00:29.2]} 36... Kf6 {[%clk 0:01:01.6]} 37. Rxb7 {[%clk
0:00:26.6]} 37... Rxc3 {[%clk 0:01:00.6]} 38. Rb6+ {[%clk 0:00:25.9]} 38... Kg7
{[%clk 0:01:00.7]} 39. f3 {[%clk 0:00:25.1]} 39... h5 {[%clk 0:01:00]} 40. Kg3
{[%clk 0:00:24]} 40... Ra3 {[%clk 0:00:57.4]} 41. h4 {[%clk 0:00:23.4]} 41...
gxh4+ {[%clk 0:00:54.2]} 42. Kxh4 {[%clk 0:00:24.3]} 42... Ra2 {[%clk
0:00:51.1]} 43. g3 {[%clk 0:00:15.9]} 43... Ra5 {[%clk 0:00:48.6]} 44. Re6
{[%clk 0:00:12.2]} 44... Rf5 {[%clk 0:00:42.4]} 45. f4 {[%clk 0:00:10.6]} 45...
Rb5 {[%clk 0:00:39.4]} 46. Re5 {[%clk 0:00:10.4]} 46... Rxe5 {[%clk 0:00:28.9]}
47. fxe5 {[%clk 0:00:11.3]} 47... Kg6 {[%clk 0:00:29]} 48. e6 {[%clk 0:00:11.5]}
48... Kf6 {[%clk 0:00:28.9]} 49. Kxh5 {[%clk 0:00:11.9]} 49... Kxe6 {[%clk
0:00:29.1]} 50. Kg6 {[%clk 0:00:12.4]} 50... Ke7 {[%clk 0:00:29.2]} 51. g4
{[%clk 0:00:13.3]} 51... Kf8 {[%clk 0:00:29.1]} 52. Kh7 {[%clk 0:00:12.8]} 52...
Kf7 {[%clk 0:00:29.1]} 53. g5 {[%clk 0:00:13.7]} 1-0

[Event "*** Titled Tuesday Blitz"]
[Site "Chess.com"]
[Date "2020.11.03"]
[Round "9"]
[White "Loy_Konstantin"]
[Black "lelajavakhishvili"]
[Result "1/2-1/2"]
[WhiteElo "2384"]
[BlackElo "2519"]
[TimeControl "180+1"]
[EndTime "11:49:26 PST"]
[Termination "Game drawn - insufficient material"]

1. e4 {[%clk 0:03:00.9]} 1... c5 {[%clk 0:02:59.1]} 2. Nf3 {[%clk 0:03:00.7]}
2... e6 {[%clk 0:02:59.2]} 3. d3 {[%clk 0:03:00.7]} 3... Nc6 {[%clk 0:02:58.6]}
4. g3 {[%clk 0:03:01]} 4... Nf6 {[%clk 0:02:58.7]} 5. Bg2 {[%clk 0:03:01.2]}
5... e5 {[%clk 0:02:56.2]} 6. O-O {[%clk 0:02:59.6]} 6... Be7 {[%clk 0:02:55.7]}
7. c3 {[%clk 0:02:59.6]} 7... d6 {[%clk 0:02:55.6]} 8. Re1 {[%clk 0:02:58.5]}
8... O-O {[%clk 0:02:55.2]} 9. h3 {[%clk 0:02:58.6]} 9... Re8 {[%clk 0:02:27.7]}
10. d4 {[%clk 0:02:56.6]} 10... Bf8 {[%clk 0:02:27.4]} 11. dxc5 {[%clk
0:02:50.2]} 11... dxc5 {[%clk 0:02:26.4]} 12. Qxd8 {[%clk 0:02:50.2]} 12... Rxd8
{[%clk 0:02:26.2]} 13. Bg5 {[%clk 0:02:50.1]} 13... Be7 {[%clk 0:02:18.6]} 14.
Bxf6 {[%clk 0:02:49.8]} 14... Bxf6 {[%clk 0:02:18]} 15. Nbd2 {[%clk 0:02:50.1]}
15... Be6 {[%clk 0:02:17.8]} 16. Nf1 {[%clk 0:02:43.6]} 16... Rd7 {[%clk
0:02:14.5]} 17. Ne3 {[%clk 0:02:36.1]} 17... Rad8 {[%clk 0:02:14]} 18. Bf1
{[%clk 0:02:27.2]} 18... a6 {[%clk 0:02:06.9]} 19. Kg2 {[%clk 0:02:21.7]} 19...
b5 {[%clk 0:02:04.6]} 20. a4 {[%clk 0:02:20.5]} 20... c4 {[%clk 0:02:00.6]} 21.
axb5 {[%clk 0:02:17.9]} 21... axb5 {[%clk 0:02:00.6]} 22. Ra6 {[%clk 0:02:01.9]}
22... Rc7 {[%clk 0:01:57.2]} 23. Rea1 {[%clk 0:01:54]} 23... g6 {[%clk 0:01:45]}
24. Rb6 {[%clk 0:01:51.2]} 24... b4 {[%clk 0:01:35.7]} 25. Bxc4 {[%clk
0:01:00.6]} 25... Bxc4 {[%clk 0:01:31.7]} 26. Nxc4 {[%clk 0:01:01.5]} 26... bxc3
{[%clk 0:01:31.4]} 27. bxc3 {[%clk 0:01:01.3]} 27... Rd3 {[%clk 0:01:31.7]} 28.
Rxc6 {[%clk 0:00:52.7]} 28... Rxc6 {[%clk 0:01:28.4]} 29. Ncxe5 {[%clk
0:00:53.1]} 29... Bxe5 {[%clk 0:00:53.7]} 30. Nxe5 {[%clk 0:00:54]} 30... Rdxc3
{[%clk 0:00:53.1]} 31. Nxc6 {[%clk 0:00:54]} 31... Rxc6 {[%clk 0:00:53.7]} 32.
Ra3 {[%clk 0:00:52]} 32... h5 {[%clk 0:00:53.4]} 33. g4 {[%clk 0:00:50.8]} 33...
hxg4 {[%clk 0:00:52]} 34. hxg4 {[%clk 0:00:50.4]} 34... Kg7 {[%clk 0:00:52.9]}
35. Kf3 {[%clk 0:00:49.8]} 35... Rf6+ {[%clk 0:00:52.6]} 36. Kg3 {[%clk
0:00:49.3]} 36... Re6 {[%clk 0:00:51.5]} 37. f3 {[%clk 0:00:47.8]} 37... g5
{[%clk 0:00:50.8]} 38. Ra5 {[%clk 0:00:41.2]} 38... f6 {[%clk 0:00:50.8]} 39.
Ra4 {[%clk 0:00:39.5]} 39... Kg6 {[%clk 0:00:50.7]} 40. f4 {[%clk 0:00:39.3]}
40... gxf4+ {[%clk 0:00:50.1]} 41. Kxf4 {[%clk 0:00:40.2]} 41... Rb6 {[%clk
0:00:49.2]} 42. Ra5 {[%clk 0:00:38.4]} 42... Rb1 {[%clk 0:00:48.5]} 43. Ra6
{[%clk 0:00:27.7]} 43... Rf1+ {[%clk 0:00:47.9]} 44. Kg3 {[%clk 0:00:27.6]}
44... Re1 {[%clk 0:00:47.6]} 45. Kf3 {[%clk 0:00:27.2]} 45... Rf1+ {[%clk
0:00:47.4]} 46. Ke2 {[%clk 0:00:25.1]} 46... Rf4 {[%clk 0:00:46.1]} 47. Ke3
{[%clk 0:00:18.6]} 47... Rf1 {[%clk 0:00:41.7]} 48. e5 {[%clk 0:00:14.9]} 48...
Re1+ {[%clk 0:00:41.7]} 49. Kf4 {[%clk 0:00:14.7]} 49... Rxe5 {[%clk 0:00:42.3]}
50. Ra4 {[%clk 0:00:14.6]} 50... Re1 {[%clk 0:00:42]} 51. Re4 {[%clk 0:00:13.9]}
51... Rf1+ {[%clk 0:00:41.8]} 52. Kg3 {[%clk 0:00:14]} 52... Rg1+ {[%clk
0:00:42]} 53. Kf3 {[%clk 0:00:14]} 53... Rf1+ {[%clk 0:00:41.8]} 54. Kg3 {[%clk
0:00:14]} 54... f5 {[%clk 0:00:41.6]} 55. gxf5+ {[%clk 0:00:13.7]} 55... Kxf5
{[%clk 0:00:41.2]} 56. Re2 {[%clk 0:00:14.2]} 56... Rg1+ {[%clk 0:00:41.1]} 57.
Kf3 {[%clk 0:00:14]} 57... Rg6 {[%clk 0:00:40.3]} 58. Rg2 {[%clk 0:00:13.7]}
58... Rxg2 {[%clk 0:00:40.3]} 59. Kxg2 {[%clk 0:00:13.8]} 1/2-1/2